fUSD/lending_fUSD_20250820
["ID","MTS","AMOUNT","RATE_DAILY","PERIOD"]
[380337319,1755695448315,-2008.1,0.00017,2]
[380337320,1755695448324,-300.0,0.00017,2]
[380337321,1755695448334,-151.0,0.00017041,2]
[380337322,1755695448344,-798.34,0.00017041,2]
[380337323,1755695448354,-9286.63344084,0.00017097,2]
[380337324,1755695448363,-2000.0,0.00017099,2]
[380337325,1755695448373,-500.0,0.00017137,2]
[380337326,1755695448382,-200.0,0.00017137,2]
[380337327,1755695448392,-500.0,0.00017147,2]
[380337328,1755695448402,-408.32,0.00017178,2]
[380337329,1755695448411,-408.32,0.00017178,2]
[380337330,1755695448421,-408.32,0.00017178,2]
[380337331,1755695448431,-408.32,0.00017178,2]
[380337332,1755695448441,-408.32,0.00017178,2]
[380337333,1755695448450,-500.0,0.00017192,2]
[380337334,1755695448459,-150.0,0.00017192,2]
[380337335,1755695448469,-500.0,0.00017192,2]
[380337336,1755695448478,-500.0,0.00017192,2]
[380337337,1755695448487,-435.0,0.00017192,2]
[380337338,1755695448497,-201.35823569,0.00017192,2]
[380337339,1755695448506,-200.0,0.00017192,2]
[380337340,1755695448516,-200.0,0.00017192,2]
[380337341,1755695448525,-350.0,0.00017192,2]
[380337342,1755695448534,-200.0,0.00017192,2]
[380337343,1755695448543,-150.0,0.00017192,2]
[380337344,1755695448553,-150.0,0.00017192,2]
[380337345,1755695448562,-250.0,0.00017192,2]
[380337346,1755695448571,-500.0,0.00017192,2]
[380337347,1755695448581,-477.0,0.00017192,2]
[380337348,1755695448591,-283.0,0.00017227,2]
[380337349,1755695448601,-3000.0,0.0001726,2]
[380337350,1755695448611,-2300.0,0.0001726,2]
[380337351,1755695448620,-1300.0,0.0001726,2]
[380337352,1755695448631,-201.96671722,0.00017271,2]
[380337353,1755695448642,-500.0,0.00017293,2]
[380337354,1755695448652,-1000.0,0.000173,2]
[380337355,1755695448662,-500.0,0.00017313,2]
[380337356,1755695448672,-168.74,0.00017361,2]
[380337357,1755695448683,-361.0,0.00017386,2]
[380337358,1755695448694,-300.0,0.00017393,2]
[380337359,1755695448703,-675.75,0.00017398,2]
[380337360,1755695448713,-477.57072659,0.000174,2]
[380337361,1755695448722,-500.0,0.000174,2]
[380337362,1755695448732,-500.0,0.00017421,2]
[380337363,1755695448741,-300.65,0.00017452,2]
[380337364,1755695448750,-314.76,0.00017457,2]
[380337365,1755695448759,-264.0,0.00017466,2]
[380337366,1755695448769,-191.0,0.00017466,2]
[380337367,1755695448778,-500.0,0.00017466,2]
[380337368,1755695448787,-500.0,0.00017466,2]
[380337369,1755695448797,-435.0,0.00017466,2]
[380337370,1755695448806,-150.0,0.00017466,2]
[380337371,1755695448815,-250.0,0.00017466,2]
[380337372,1755695448825,-500.0,0.00017466,2]
[380337373,1755695448834,-1613.0,0.00017473,2]
[380337374,1755695448845,-2529.55278,0.0001753,2]
[380337375,1755695448854,-2408.31407233,0.00017555,2]
[380337376,1755695448863,-567.3324,0.00017628,2]
[380337377,1755695448873,-500.0,0.00017629,2]
[380337378,1755695448883,-1000.0,0.00017629,2]
[380337379,1755695448892,-298.26089446,0.00017637,2]
[380337380,1755695448901,-150.0,0.00017639,2]
[380337381,1755695448911,-855.23220724,0.00017654,2]
[380337382,1755695448920,-500.0,0.00017695,2]
[380337383,1755695448929,-5800.0,0.00017699,2]
[380337384,1755695448939,-2000.0,0.00017703,2]
[380337385,1755695448948,-4125.9727092,0.00017704,2]
[380337386,1755695448957,-993.86312669,0.00017711,2]
[380337387,1755695448967,-993.86312669,0.00017716,2]
[380337388,1755695448977,-167.62658815,0.00017723,2]
[380337389,1755695448986,-35239.01575846,0.00017728,2]
[380337390,1755695448996,-3000.0,0.00017728,2]
[380337391,1755695449006,-370.32287278,0.00017728,2]
[380337392,1755695449015,-167.62658815,0.00017729,2]
[380337393,1755695449025,-500.0,0.0001774,2]
[380337394,1755695449036,-500.0,0.0001774,2]
[380337395,1755695449046,-435.0,0.0001774,2]
[380337396,1755695449056,-160.0,0.0001774,2]
[380337397,1755695449065,-386.0,0.0001774,2]
[380337398,1755695449075,-167.62658815,0.00017742,2]
[380337399,1755695449084,-370.32287278,0.00017743,2]
[380337400,1755695449095,-167.62658815,0.00017755,2]
[380337401,1755695449110,-370.32287278,0.00017763,2]
[380337402,1755695449120,-6984.81173056,0.00017764,2]
[380337403,1755695449130,-13499.5983714,0.00017765,2]
[380337404,1755695449139,-993.86312669,0.00017766,2]
[380337405,1755695449149,-18161.74218768,0.00017766,2]
[380337406,1755695449191,-136594.08,0.00017766,2]
[380337407,1755695449203,-79016.47487604,0.00017766,2]
[380337408,1755695449213,-6455.50321645,0.00017768,2]
[380337409,1755695449223,-515.84834245,0.0001777,2]
[380337410,1755695449234,-167.62658815,0.00017771,2]
[380337411,1755695449243,-6455.50321645,0.00017772,2]
[380337412,1755695449253,-2707.04118699,0.00017776,2]
[380337413,1755695449263,-2707.04118699,0.00017783,2]
[380337414,1755695449274,-4149.27990783,0.00017785,2]
[380337415,1755695449284,-9286.63344084,0.00017785,2]
[380337416,1755695449293,-2499.12874701,0.00017788,2]
[380337417,1755695449318,-989.816574,0.00017788,2]
[380337418,1755695449330,-10010.65305039,0.00017788,2]
[380337419,1755695449340,-167.62658815,0.00017788,2]
[380337420,1755695449350,-993.86312669,0.00017789,2]
[380337421,1755695449359,-370.32287278,0.00017791,2]
[380337422,1755695449368,-13499.5983714,0.00017791,2]
[380337423,1755695449378,-167.62658815,0.00017798,2]
[380337424,1755695449388,-2707.04118699,0.00017801,2]
[380337425,1755695449397,-4149.27990783,0.00017802,2]
[380337426,1755695449407,-993.86312669,0.00017803,2]
[380337427,1755695449418,-80800.12518096,0.00017804,2]
[380337434,1755696129177,1462.62452691,0.0002465,120]
[380337441,1755696582256,-203.8742135,0.0001,5]
[380337447,1755696632054,-506.1257865,0.0001,5]
[380337448,1755696632065,-1200.0,0.00010988,2]
[380337449,1755696632074,-300.0,0.00010988,2]
[380337451,1755696632083,-300.0,0.00010988,2]
[380337452,1755696632092,-300.0,0.00010988,2]
[380337453,1755696632102,-150.0,0.00010989,2]
[380337454,1755696632111,-790.66026478,0.00010989,2]
[380337455,1755696632120,-946.03255434,0.00010989,2]
[380337456,1755696632132,-61.6717047,0.00010989,2]
[380337457,1755696632142,-1224.74825329,0.00010989,2]
[380337458,1755696632152,-1441.79224754,0.00010989,2]
[380337459,1755696632161,-150.0,0.00010989,2]
[380337460,1755696632170,-1761.79178765,0.0001099,2]
[380337461,1755696632183,-348.01701607,0.0001099,2]
[380337462,1755696632198,-6734.09764322,0.0001099,2]
[380337463,1755696632208,-1658.8362418,0.0001099,2]
[380337464,1755696632220,-1875.88023605,0.0001099,2]
[380337465,1755696632229,-2092.9242303,0.0001099,2]
[380337466,1755696632239,-2309.96822456,0.0001099,2]
[380337467,1755696632248,-2527.01221881,0.0001099,2]
[380337468,1755696632257,-554.46936043,0.00010999,2]
[380337469,1755696632266,-465.47825115,0.00010999,2]
[380337470,1755696632276,-292.10982541,0.00010999,2]
[380337471,1755696632287,-228.7770752,0.00010999,2]
[380337472,1755696632297,-500.0,0.00010999,2]
[380337473,1755696632307,-500.0,0.00010999,2]
[380337474,1755696632317,-590.82454383,0.00010999,2]
[380337475,1755696632327,-1821.57,0.00011,2]
[380337476,1755696632337,-21330.82216914,0.00011,2]
[380337477,1755696632357,-4485.41281946,0.00011,2]
[380337478,1755696632368,-2213.2098026,0.00011,2]
[380337479,1755696632380,-286.91,0.00011,2]
[380337480,1755696632391,-300.4419131,0.00011,2]
[380337481,1755696632411,-4699.75714935,0.00011,2]
[380337482,1755696632422,-8495.59594965,0.00011,2]
[380337483,1755696632435,-1958.47841337,0.00011,2]
[380337505,1755696638013,-604.16990972,0.00011,2]
[380337506,1755696638024,-4256.82728835,0.00011,2]
[380337507,1755696638074,-51781.53398769,0.00011,2]
[380337508,1755696638084,-266698.58690159,0.00011,2]
[380337509,1755696638094,-151.0,0.00011,2]
[380337510,1755696638103,-151.0,0.00011,2]
[380337511,1755696638113,-300.0,0.00011,2]
[380337512,1755696638123,-250.0,0.00011,2]
[380337513,1755696638132,-1156.02000012,0.00012035,2]
[380337514,1755696638142,-1680.0,0.00012087,2]
[380337515,1755696638151,-644.59,0.00012134,2]
[380337516,1755696638161,-250.0,0.00012134,2]
[380337517,1755696638171,-1033.28,0.00012134,2]
[380337518,1755696638180,-4733.93478308,0.00012135,2]
[380337519,1755696638191,-150.99,0.00012135,2]
[380337520,1755696638200,-843.97594471,0.0001219,2]
[380337521,1755696638210,-212.04014818,0.0001219,2]
[380337522,1755696638219,-458.46930693,0.0001219,2]
[380337523,1755696638232,-154.80270839,0.0001232,2]
[380337524,1755696638243,-500.0,0.0001232,2]
[380337525,1755696638253,-500.0,0.0001232,2]
[380337526,1755696638263,-3520.53783707,0.00012407,2]
[380337527,1755696638273,-500.0,0.0001265,2]
[380337528,1755696638283,-227.59305893,0.0001265,2]
[380337529,1755696638292,-500.0,0.0001265,2]
[380337530,1755696638302,-1156.02000009,0.00012755,2]
[380337531,1755696638311,-500.0,0.00012868,2]
[380337533,1755696638322,-1000.0,0.00012868,2]
[380337534,1755696638331,-1000.0,0.00013198,2]
[380337535,1755696638341,-159.27380131,0.000134,2]
[380337536,1755696638351,-1003.89816877,0.00013416,2]
[380337537,1755696638361,-1156.02000009,0.00013475,2]
[380337538,1755696638371,-900.0,0.000135,2]
[380337540,1755696638380,-400.0,0.00013505,2]
[380337542,1755696638390,-170.55,0.00013621,2]
[380337544,1755696638399,-500.0,0.0001369,2]
[380337546,1755696638409,-500.0,0.0001369,2]
[380337548,1755696638419,-500.0,0.0001369,2]
[380337550,1755696638428,-500.0,0.0001369,2]
[380337552,1755696638438,-500.0,0.0001369,2]
[380337554,1755696638447,-587.33829601,0.0001369,2]
[380337556,1755696638456,-151.0,0.0001369,2]
[380337558,1755696638466,-151.0,0.0001369,2]
[380337560,1755696638479,-151.0,0.0001369,2]
[380337562,1755696638489,-151.0,0.0001369,2]
[380337564,1755696638498,-151.0,0.0001369,2]
[380337567,1755696638508,-151.0,0.0001369,2]
[380337570,1755696638517,-151.0,0.0001369,2]
[380337572,1755696638526,-151.0,0.0001369,2]
[380337574,1755696638536,-151.0,0.0001369,2]
[380337576,1755696638545,-151.0,0.0001369,2]
[380337578,1755696638554,-151.0,0.0001369,2]
[380337580,1755696638564,-500.0,0.0001369,2]
[380337582,1755696638573,-245.06280438,0.0001369,2]
[380337584,1755696638583,-154.46931601,0.0001369,2]
[380337586,1755696638591,-900.0,0.00013699,2]
[380337588,1755696638601,-900.0,0.00013699,2]
[380337590,1755696638610,-900.0,0.00013699,2]
[380337592,1755696638619,-900.0,0.00013699,2]
[380337594,1755696638628,-900.0,0.00013699,2]
[380337596,1755696638638,-900.0,0.00013699,2]
[380337598,1755696638647,-900.0,0.00013699,2]
[380337601,1755696638657,-900.0,0.00013699,2]
[380337603,1755696638667,-900.0,0.00013699,2]
[380337605,1755696638676,-900.0,0.00013699,2]
[380337607,1755696638686,-900.0,0.00013699,2]
[380337609,1755696638696,-900.0,0.00013699,2]
[380337611,1755696638705,-900.0,0.00013699,2]
[380337613,1755696638715,-900.0,0.00013699,2]
[380337615,1755696638731,-900.0,0.00013699,2]
[380337617,1755696638741,-900.0,0.00013699,2]
[380337619,1755696638750,-1000.0,0.00013699,2]
[380337621,1755696638759,-500.0,0.00013745,2]
[380337623,1755696638769,-1500.0,0.00013746,2]
[380337625,1755696638779,-500.0,0.000138,2]
[380337627,1755696638788,-500.0,0.00013855,2]
[380337629,1755696638797,-500.0,0.0001391,2]
[380337631,1755696638808,-192.21,0.00013945,2]
[380337633,1755696638818,-500.0,0.00013965,2]
[380337635,1755696638828,-500.0,0.0001402,2]
[380337637,1755696638837,-500.0,0.00014075,2]
[380337639,1755696638846,-1803.55957022,0.00014294,2]
[380337641,1755696638856,-965.077,0.00014297,2]
[380337643,1755696638865,-500.0,0.000143,2]
[380337645,1755696638875,-500.0,0.000143,2]
[380337647,1755696638884,-170.0,0.00014362,7]
[380337649,1755696638894,-200.0,0.00014468,2]
[380337651,1755696638904,-1229.17,0.00014468,2]
[380337653,1755696638913,-1000.0,0.00014468,2]
[380337655,1755696638922,-2751.0,0.00014468,2]
[380337657,1755696638931,-1000.0,0.000145,3]
[380337659,1755696638941,-2200.0,0.0001452,2]
[380337661,1755696638950,-1200.0,0.0001452,2]
[380337663,1755696638959,-3000.0,0.0001452,2]
[380337665,1755696638969,-250.0,0.00014521,2]
[380337667,1755696638981,-560.57496486,0.00014627,2]
[380337669,1755696638991,-4040.23714109,0.00014748,2]
[380337671,1755696639001,-277.35679052,0.00014899,2]
[380337674,1755696639010,-721.12765535,0.00014899,2]
[380337675,1755696639019,-246.39601672,0.00014899,2]
[380337678,1755696639029,-155.64884187,0.00014899,2]
[380337680,1755696639038,-151.0,0.00014899,2]
[380337682,1755696639047,-151.0,0.00014899,2]
[380337684,1755696639056,-151.0,0.00014899,2]
[380337686,1755696639066,-151.0,0.00014899,2]
[380337688,1755696639075,-151.0,0.00014899,2]
[380337690,1755696639084,-548.36854937,0.00014899,2]
[380337692,1755696639093,-151.0,0.00014899,2]
[380337694,1755696639103,-151.0,0.00014899,2]
[380337696,1755696639112,-9274.81107495,0.00014899,2]
[380337698,1755696639122,-151.0,0.00014899,2]
[380337700,1755696639131,-151.0,0.00014899,2]
[380337702,1755696639140,-151.0,0.00014899,2]
[380337704,1755696639150,-151.0,0.00014899,2]
[380337706,1755696639160,-151.0,0.00014899,2]
[380337708,1755696639170,-300.0,0.00014899,2]
[380337710,1755696639179,-3867.41264785,0.00014948,2]
[380337712,1755696639188,-9617.97908473,0.00014954,2]
[380337714,1755696639197,-163.31161862,0.00015,4]
[380337716,1755696639207,-9973.84431086,0.00015009,2]
[380337718,1755696639216,-10342.87655036,0.00015064,2]
[380337720,1755696639229,-251.76,0.00015084,2]
[380337722,1755696639239,-500.0,0.00015096,2]
[380337724,1755696639249,-10725.56298273,0.00015119,2]
[380337726,1755696639258,-11122.40881309,0.00015174,2]
[380337728,1755696639267,-3319.9680093,0.00015186,2]
[380337730,1755696639276,-11533.93793917,0.00015229,2]
[380337732,1755696639286,-300.0,0.00015243,2]
[380337734,1755696639295,-4120.66532902,0.00015284,2]
[380337736,1755696639305,-1000.0,0.00015352,2]
[380337738,1755696639314,-349.36185289,0.00015356,2]
[380337740,1755696639324,-151.0,0.00015363,2]
[380337742,1755696639336,-2500.0,0.000154,2]
[380337744,1755696639346,-151.0,0.00015447,2]
[380337746,1755696639356,-151.0,0.00015479,2]
[380337748,1755696639367,-50000.0,0.000155,10]
[380337750,1755696639376,-1000.0,0.000155,4]
[380337752,1755696639386,-151.0,0.00015559,2]
[380337755,1755696639396,-151.0,0.00015634,2]
[380337757,1755696639406,-157.05963202,0.00015828,7]
[380337758,1755696639416,-2200.0,0.0001589,2]
[380337760,1755696639426,-1200.0,0.0001589,2]
[380337763,1755696639435,-3000.0,0.0001589,2]
[380337765,1755696639447,-1167.6676729,0.00016,2]
[380337767,1755696639457,-151.47503791,0.00016239,2]
[380337792,1755696639466,-287.61899177,0.00016268,2]
[380337794,1755696639880,-1000.0,0.00016276,2]
[380337797,1755696639890,-2000.0,0.00016438,2]
[380337799,1755696639900,-1007.9,0.00016438,2]
[380337801,1755696639909,-666.0,0.00016438,3]
[380337802,1755696639919,-600.0,0.00016438,2]
[380337803,1755696639929,-600.0,0.00016438,2]
[380337804,1755696639938,-600.0,0.00016438,2]
[380337805,1755696639947,-600.0,0.00016438,2]
[380337807,1755696639958,-600.0,0.00016438,2]
[380337809,1755696639967,-600.0,0.00016438,2]
[380337810,1755696639979,-600.0,0.00016438,2]
[380337811,1755696639989,-600.0,0.00016438,2]
[380337812,1755696639998,-600.0,0.00016438,2]
[380337814,1755696640007,-600.0,0.00016438,2]
[380337816,1755696640017,-600.0,0.00016438,2]
[380337818,1755696640026,-173.34,0.00016604,2]
[380337819,1755696640036,-300.0,0.00016612,2]
[380337820,1755696640046,-1007.9,0.00016712,2]
[380337821,1755696640058,-181.32,0.00016712,2]
[380337822,1755696640068,-500.0,0.00016804,7]
[380337823,1755696640079,-500.0,0.00016804,7]
[380337824,1755696640089,-500.0,0.00016804,7]
[380337825,1755696640098,-500.0,0.00016804,7]
[380337826,1755696640108,-500.0,0.00016804,7]
[380337827,1755696640123,-500.0,0.00016804,7]
[380337828,1755696640133,-500.0,0.00016804,7]
[380337829,1755696640143,-500.0,0.00016804,7]
[380337830,1755696640153,-500.0,0.00016804,7]
[380337831,1755696640162,-500.0,0.00016804,7]
[380337832,1755696640172,-500.0,0.00016804,7]
[380337833,1755696640183,-500.0,0.00016804,7]
[380337834,1755696640193,-500.0,0.00016804,7]
[380337835,1755696640204,-500.0,0.00016804,7]
[380337836,1755696640213,-500.0,0.00016804,7]
[380337837,1755696640225,-500.0,0.00016804,7]
[380337838,1755696640234,-566.54,0.00016804,7]
[380337839,1755696640244,-500.0,0.00016804,7]
[380337840,1755696640254,-500.0,0.00016804,7]
[380337841,1755696640263,-500.0,0.00016804,7]
[380337842,1755696640273,-500.0,0.00016804,7]
[380337843,1755696640284,-500.0,0.00016804,7]
[380337844,1755696640294,-272.19,0.00016804,7]
[380337845,1755696640304,-500.0,0.00016804,7]
[380337846,1755696640315,-177.31,0.00016804,7]
[380337848,1755696640324,-1007.9,0.00016986,2]
[380337849,1755696640334,-644.59,0.00016988,2]
[380337850,1755696640351,-458.46930693,0.00017,7]
[380337851,1755696640373,-212.04014818,0.00017,7]
[380337852,1755696640393,-151.47503791,0.00017183,2]
[380337854,1755696640409,-4491.0,0.000172,2]
[380337856,1755696640419,-498.15,0.0001723,2]
[380337857,1755696640428,-1007.9,0.0001726,2]
[380337858,1755696640438,-2200.0,0.0001726,2]
[380337859,1755696640447,-1200.0,0.0001726,2]
[380337860,1755696640456,-3000.0,0.0001726,2]
[380337861,1755696640466,-294.25,0.0001726,2]
[380337862,1755696640480,-4491.0,0.00017263,2]
[380337863,1755696640490,-1371.24089654,0.00017269,2]
[380337864,1755696640500,-4491.0,0.00017281,2]
[380337865,1755696640509,-880.48719884,0.00017294,2]
[380337866,1755696640519,-2000.0,0.000173,2]
[380337867,1755696640529,-4491.0,0.00017302,2]
[380337868,1755696640539,-1068.84867507,0.00017399,2]
[380337869,1755696640548,-163.78033252,0.00017399,2]
[380337870,1755696640558,-4491.0,0.00017446,2]
[380337871,1755696640568,-4491.0,0.0001748,2]
[380337872,1755696640578,-4491.0,0.00017496,2]
[380337873,1755696640589,-33241.1318189,0.000175,2]
[380337874,1755696640600,-4491.0,0.00017534,2]
[380337875,1755696640610,-1007.9,0.00017534,2]
[380337876,1755696640620,-4491.0,0.000176,2]
[380337877,1755696640631,-150.0,0.000176,2]
[380337878,1755696640645,-500.0,0.0001761,2]
[380337879,1755696640664,-200.0,0.0001761,2]
[380337880,1755696640674,-298.26089446,0.00017637,2]
[380337881,1755696640683,-33241.09,0.000177,2]
[380337882,1755696640693,-150.0,0.00017726,2]
[380337883,1755696640703,-605.15,0.00017726,2]
[380337884,1755696640712,-500.0,0.0001774,2]
[380337885,1755696640726,-150.0,0.0001774,2]
[380337886,1755696640739,-150.0,0.0001774,2]
[380337887,1755696640749,-150.0,0.0001774,2]
[380337888,1755696640759,-150.0,0.0001774,2]
[380337889,1755696640768,-150.0,0.0001774,2]
[380337890,1755696640779,-150.0,0.0001774,2]
[380337891,1755696640788,-150.0,0.0001774,2]
[380337892,1755696640798,-150.0,0.0001774,2]
[380337893,1755696640809,-500.0,0.0001774,2]
[380337894,1755696640818,-150.0,0.0001774,2]
[380337895,1755696640827,-150.0,0.0001774,2]
[380337896,1755696640837,-150.0,0.0001774,2]
[380337897,1755696640846,-150.0,0.0001774,2]
[380337898,1755696640855,-150.0,0.0001774,2]
[380337899,1755696640864,-150.0,0.0001774,2]
[380337900,1755696640873,-150.0,0.0001774,2]
[380337901,1755696640882,-150.0,0.0001774,2]
[380337902,1755696640891,-150.38915858,0.0001774,2]
[380337903,1755696640901,-500.0,0.0001774,2]
[380337904,1755696640911,-150.0,0.0001774,2]
[380337905,1755696640920,-150.0,0.0001774,2]
[380337906,1755696640930,-150.69574939,0.0001774,2]
[380337907,1755696640939,-150.0,0.0001774,2]
[380337908,1755696640948,-150.0,0.0001774,2]
[380337909,1755696640958,-500.0,0.0001774,2]
[380337910,1755696640967,-2000.0,0.00017769,2]
[380337911,1755696640979,-1589.0,0.0001777,2]
[380337912,1755696640988,-58877.7454906,0.0001777,2]
[380337913,1755696640998,-95312.3299524,0.0001777,2]
[380337914,1755696641007,-763.8902694,0.0001777,2]
[380337915,1755696641016,-151.0,0.0001777,2]
[380337916,1755696641026,-151.0,0.0001777,2]
[380337917,1755696641035,-151.0,0.0001777,2]
[380337918,1755696641044,-151.0,0.0001777,2]
[380337919,1755696641053,-151.0,0.0001777,2]
[380337920,1755696641063,-151.0,0.0001777,2]
[380337921,1755696641072,-151.0,0.0001777,2]
[380337922,1755696641081,-151.0,0.0001777,2]
[380337923,1755696641091,-151.0,0.0001777,2]
[380337924,1755696641099,-151.0,0.0001777,2]
[380337925,1755696641108,-151.0,0.0001777,2]
[380337926,1755696641118,-151.488793,0.0001777,2]
[380337927,1755696641127,-151.0,0.0001777,2]
[380337928,1755696641136,-151.0,0.0001777,2]
[380337929,1755696641146,-151.0,0.0001777,2]
[380337930,1755696641156,-151.0,0.0001777,2]
[380337931,1755696641165,-151.0,0.0001777,2]
[380337932,1755696641174,-151.0,0.0001777,2]
[380337933,1755696641183,-151.0,0.0001777,2]
[380337934,1755696641193,-299.778001,0.0001777,2]
[380337935,1755696641202,-151.0,0.0001777,2]
[380337936,1755696641211,-151.0,0.0001777,2]
[380337937,1755696641220,-299.778001,0.0001777,2]
[380337938,1755696641233,-159.758689,0.0001777,2]
[380337939,1755696641242,-299.778001,0.0001777,2]
[380337940,1755696641252,-299.778001,0.0001777,2]
[380337941,1755696641261,-462.198119,0.0001777,2]
[380337942,1755696641270,-151.0,0.0001777,2]
[380337943,1755696641279,-462.198119,0.0001777,2]
[380337944,1755696641288,-151.0,0.0001777,2]
[380337945,1755696641297,-151.0,0.0001777,2]
[380337946,1755696641307,-462.198119,0.0001777,2]
[380337947,1755696641316,-462.198119,0.0001777,2]
[380337948,1755696641326,-151.0,0.0001777,2]
[380337949,1755696641336,-151.0,0.0001777,2]
[380337950,1755696641346,-151.0,0.0001777,2]
[380337951,1755696641356,-151.0,0.0001777,2]
[380337952,1755696641366,-153.78218,0.0001777,2]
[380337953,1755696641375,-243.253298,0.0001777,2]
[380337954,1755696641386,-151.0,0.0001777,2]
[380337955,1755696641395,-151.0,0.0001777,2]
[380337956,1755696641404,-151.0,0.0001777,2]
[380337957,1755696641414,-297.555463,0.0001777,2]
[380337958,1755696641423,-151.0,0.0001777,2]
[380337959,1755696641432,-297.555463,0.0001777,2]
[380337960,1755696641442,-297.555463,0.0001777,2]
[380337961,1755696641452,-341.506234,0.0001777,2]
[380337962,1755696641461,-341.506234,0.0001777,2]
[380337963,1755696641476,-297.555463,0.0001777,2]
[380337964,1755696641486,-341.506234,0.0001777,2]
[380337965,1755696641495,-151.0,0.0001777,2]
[380337966,1755696641504,-341.506234,0.0001777,2]
[380337967,1755696641513,-151.0,0.0001777,2]
[380337968,1755696641523,-151.0,0.0001777,2]
[380337969,1755696641532,-151.0,0.0001777,2]
[380337970,1755696641541,-151.0,0.0001777,2]
[380337971,1755696641550,-151.0,0.0001777,2]
[380337972,1755696641560,-5428.060384,0.0001777,2]
[380337973,1755696641569,-1670.917246,0.0001777,2]
[380337974,1755696641579,-186.049325,0.0001777,2]
[380337975,1755696641588,-151.0,0.0001777,2]
[380337976,1755696641597,-1670.917246,0.0001777,2]
[380337977,1755696641612,-5428.060384,0.0001777,2]
[380337978,1755696641622,-548.993428,0.0001777,2]
[380337979,1755696641632,-151.0,0.0001777,2]
[380337980,1755696641641,-1670.917246,0.0001777,2]
[380337981,1755696641651,-5428.060384,0.0001777,2]
[380337982,1755696641661,-548.993428,0.0001777,2]
[380337983,1755696641670,-151.0,0.0001777,2]
[380337984,1755696641680,-1670.917246,0.0001777,2]
[380337985,1755696641690,-151.0,0.0001777,2]
[380337986,1755696641700,-5428.060384,0.0001777,2]
[380337987,1755696641709,-548.993428,0.0001777,2]
[380337988,1755696641723,-151.0,0.0001777,2]
[380337989,1755696641736,-417.804054,0.0001777,2]
[380337990,1755696641746,-151.0,0.0001777,2]
[380337991,1755696641756,-151.0,0.0001777,2]
[380337992,1755696641766,-548.993428,0.0001777,2]
[380337993,1755696641776,-173.839743,0.0001777,2]
[380337994,1755696641785,-151.0,0.0001777,2]
[380337995,1755696641795,-417.804054,0.0001777,2]
[380337996,1755696641806,-151.0,0.0001777,2]
[380337997,1755696641816,-173.839743,0.0001777,2]
[380337998,1755696641826,-417.804054,0.0001777,2]
[380337999,1755696641835,-173.839743,0.0001777,2]
[380338000,1755696641845,-151.0,0.0001777,2]
[380338001,1755696641855,-151.0,0.0001777,2]
[380338002,1755696641865,-384.09816294,0.00017796,2]
[380338003,1755696641874,-5348.0346113,0.00017796,2]
[380338004,1755696641884,-151.0,0.00017799,2]
[380338005,1755696641894,-151.0,0.00017799,2]
[380338006,1755696641903,-151.0,0.00017799,2]
[380338007,1755696641913,-2244.58,0.000178,2]
[380338008,1755696641923,-500.0,0.000178,2]
[380338009,1755696641933,-250000.0,0.000178,2]
[380338010,1755696641944,-151.0,0.000178,2]
[380338011,1755696641953,-225.014459,0.000178,2]
[380338012,1755696641962,-151.0,0.000178,2]